[Event "*** SCC Grand Prix: Titled Tuesday Blitz"]
[Site "Chess.com"]
[Date "2020.07.21"]
[Round "1"]
[White "2346PL"]
[Black "XDPS"]
[Result "1-0"]
[WhiteElo "2395"]
[BlackElo "2723"]
[TimeControl "180+1"]
[EndTime "10:07:14 PDT"]
[Termination "2346PL won by checkmate"]

1. d4 {[%clk 0:03:00.9]} 1... d5 {[%clk 0:02:53.9]} 2. Nf3 {[%clk 0:03:00.5]}
2... Nf6 {[%clk 0:02:52.9]} 3. c3 {[%clk 0:03:00.7]} 3... e6 {[%clk 0:02:51.1]}
4. Bg5 {[%clk 0:03:00.6]} 4... Nbd7 {[%clk 0:02:50.2]} 5. e3 {[%clk 0:03:00.8]}
5... c5 {[%clk 0:02:43.6]} 6. Bd3 {[%clk 0:03:00.8]} 6... Qc7 {[%clk 0:02:43]}
7. Nbd2 {[%clk 0:03:00.6]} 7... b6 {[%clk 0:02:42.4]} 8. O-O {[%clk 0:02:55.3]}
8... Bb7 {[%clk 0:02:42.1]} 9. h3 {[%clk 0:02:46.2]} 9... Be7 {[%clk 0:02:40]}
10. Qe2 {[%clk 0:02:43]} 10... O-O {[%clk 0:02:38.6]} 11. Rac1 {[%clk
0:02:34.4]} 11... Rfe8 {[%clk 0:02:36]} 12. e4 {[%clk 0:02:29.6]} 12... dxe4
{[%clk 0:02:35]} 13. Nxe4 {[%clk 0:02:29.5]} 13... Nxe4 {[%clk 0:02:35.2]} 14.
Bxe4 {[%clk 0:02:29.3]} 14... Bxg5 {[%clk 0:02:34.4]} 15. Nxg5 {[%clk
0:02:23.9]} 15... Bxe4 {[%clk 0:02:28.7]} 16. Nxe4 {[%clk 0:02:08.1]} 16... cxd4
{[%clk 0:02:20.9]} 17. cxd4 {[%clk 0:02:06.7]} 17... Qf4 {[%clk 0:02:13.4]} 18.
Qe3 {[%clk 0:02:06.8]} 18... Qh4 {[%clk 0:02:00.1]} 19. Nd6 {[%clk 0:01:47.6]}
19... Rf8 {[%clk 0:01:50.1]} 20. Ne4 {[%clk 0:01:23.2]} 20... Rac8 {[%clk
0:01:28.1]} 21. Rfd1 {[%clk 0:01:12.1]} 21... Nf6 {[%clk 0:01:16.3]} 22. Nxf6+
{[%clk 0:01:10.2]} 22... Qxf6 {[%clk 0:01:17.2]} 23. Qe5 {[%clk 0:01:05.7]}
23... Qd8 {[%clk 0:00:22.6]} 24. Rxc8 {[%clk 0:01:02.7]} 24... Qxc8 {[%clk
0:00:23.5]} 25. d5 {[%clk 0:01:03]} 25... Rd8 {[%clk 0:00:22.7]} 26. d6 {[%clk
0:01:00.2]} 26... f6 {[%clk 0:00:15.4]} 27. Qb5 {[%clk 0:00:49.6]} 27... Qd7
{[%clk 0:00:14.7]} 28. Qh5 {[%clk 0:00:35.4]} 28... Rc8 {[%clk 0:00:11.9]} 29.
Qe2 {[%clk 0:00:30.5]} 29... g6 {[%clk 0:00:06]} 30. h4 {[%clk 0:00:29.6]} 30...
Kf7 {[%clk 0:00:05.8]} 31. h5 {[%clk 0:00:30]} 31... Rc5 {[%clk 0:00:06.3]} 32.
hxg6+ {[%clk 0:00:28.4]} 32... hxg6 {[%clk 0:00:07.2]} 33. Qe4 {[%clk 0:00:27]}
33... Kg7 {[%clk 0:00:03.6]} 34. Qa8 {[%clk 0:00:24.7]} 34... g5 {[%clk
0:00:02.3]} 35. g3 {[%clk 0:00:22.3]} 35... Kf7 {[%clk 0:00:01.7]} 36. Qh8
{[%clk 0:00:20.6]} 36... Rd5 {[%clk 0:00:02.2]} 37. Qh7+ {[%clk 0:00:19.7]}
37... Ke8 {[%clk 0:00:02.7]} 38. Qg8# {[%clk 0:00:19.9]} 1-0

[Event "*** SCC Grand Prix: Titled Tuesday Blitz"]
[Site "Chess.com"]
[Date "2020.07.21"]
[Round "1"]
[White "SzMM19"]
[Black "Roza_Idrisova"]
[Result "1-0"]
[WhiteElo "2597"]
[BlackElo "2248"]
[TimeControl "180+1"]
[EndTime "10:07:14 PDT"]
[Termination "SzMM19 won on time"]

1. e4 {[%clk 0:03:00.9]} 1... c6 {[%clk 0:02:58.7]} 2. Nf3 {[%clk 0:03:01.2]}
2... d5 {[%clk 0:02:58.2]} 3. Nc3 {[%clk 0:03:02.1]} 3... a6 {[%clk 0:02:57.8]}
4. d4 {[%clk 0:03:00.9]} 4... Bg4 {[%clk 0:02:57.1]} 5. h3 {[%clk 0:03:00.6]}
5... Bh5 {[%clk 0:02:56.5]} 6. exd5 {[%clk 0:02:59.2]} 6... cxd5 {[%clk
0:02:56.2]} 7. g4 {[%clk 0:02:59.9]} 7... Bg6 {[%clk 0:02:55.7]} 8. Ne5 {[%clk
0:03:00.6]} 8... Nc6 {[%clk 0:02:53]} 9. Nxg6 {[%clk 0:03:00.2]} 9... hxg6
{[%clk 0:02:52.4]} 10. Bg2 {[%clk 0:03:01.1]} 10... e6 {[%clk 0:02:52.6]} 11.
Be3 {[%clk 0:02:59.5]} 11... Nf6 {[%clk 0:02:52.4]} 12. Qd2 {[%clk 0:02:58.7]}
12... Bb4 {[%clk 0:02:50.5]} 13. O-O {[%clk 0:02:53.3]} 13... Ne4 {[%clk
0:02:43.1]} 14. Qd3 {[%clk 0:02:50.9]} 14... Nxc3 {[%clk 0:02:42.1]} 15. bxc3
{[%clk 0:02:51.8]} 15... Bd6 {[%clk 0:02:41.8]} 16. c4 {[%clk 0:02:52.4]} 16...
dxc4 {[%clk 0:02:32.6]} 17. Qxc4 {[%clk 0:02:53.3]} 17... O-O {[%clk 0:02:32.2]}
18. Rfd1 {[%clk 0:02:45.6]} 18... Na5 {[%clk 0:02:31.8]} 19. Qe2 {[%clk
0:02:43.5]} 19... Rc8 {[%clk 0:02:30.2]} 20. d5 {[%clk 0:02:39.7]} 20... e5
{[%clk 0:02:29.3]} 21. Rab1 {[%clk 0:02:37.2]} 21... b5 {[%clk 0:02:28.2]} 22.
a4 {[%clk 0:02:36.3]} 22... b4 {[%clk 0:01:59.4]} 23. Qxa6 {[%clk 0:02:30.7]}
23... Nc4 {[%clk 0:01:51.6]} 24. Bc1 {[%clk 0:02:12]} 24... Qc7 {[%clk
0:01:47.2]} 25. Bf1 {[%clk 0:01:52.5]} 25... Na3 {[%clk 0:01:31.3]} 26. Bxa3
{[%clk 0:01:38]} 26... bxa3 {[%clk 0:01:31]} 27. Qc6 {[%clk 0:01:28.5]} 27...
Qxc6 {[%clk 0:01:27.6]} 28. dxc6 {[%clk 0:01:28.6]} 28... Rxc6 {[%clk
0:01:27.4]} 29. Bb5 {[%clk 0:01:26.7]} 29... Rb6 {[%clk 0:01:27.1]} 30. a5
{[%clk 0:01:18.4]} 30... a2 {[%clk 0:01:20.7]} 31. Rb2 {[%clk 0:01:18.6]} 31...
Rbb8 {[%clk 0:01:11.8]} 32. c4 {[%clk 0:01:18.6]} 32... Bc5 {[%clk 0:01:07.2]}
33. Rxa2 {[%clk 0:01:18.8]} 33... Bd4 {[%clk 0:01:07]} 34. a6 {[%clk 0:01:19.2]}
34... Rfc8 {[%clk 0:00:58.7]} 35. Kg2 {[%clk 0:01:18.6]} 35... Rc7 {[%clk
0:00:52.3]} 36. Rad2 {[%clk 0:01:18.7]} 36... f5 {[%clk 0:00:48.1]} 37. f4
{[%clk 0:01:16.8]} 37... fxg4 {[%clk 0:00:42.7]} 38. hxg4 {[%clk 0:01:15.6]}
38... Kf7 {[%clk 0:00:33.4]} 39. fxe5 {[%clk 0:01:15.5]} 39... Bxe5 {[%clk
0:00:32.8]} 40. Rd7+ {[%clk 0:01:14.3]} 40... Rxd7 {[%clk 0:00:31.1]} 41. Rxd7+
{[%clk 0:01:15.2]} 41... Kf6 {[%clk 0:00:31.6]} 42. Bc6 {[%clk 0:01:03.5]} 42...
Rb2+ {[%clk 0:00:28.6]} 43. Kf3 {[%clk 0:01:02.2]} 43... Ra2 {[%clk 0:00:27.8]}
44. a7 {[%clk 0:00:58.9]} 44... Ra3+ {[%clk 0:00:27.2]} 45. Ke4 {[%clk
0:00:58.6]} 45... Ra2 {[%clk 0:00:04.9]} 46. a8=Q {[%clk 0:00:54]} 46... Re2+
{[%clk 0:00:04.2]} 47. Kf3 {[%clk 0:00:53.8]} 47... Rh2 {[%clk 0:00:01.6]} 48.
Qd8+ {[%clk 0:00:50.2]} 1-0

[Event "*** SCC Grand Prix: Titled Tuesday Blitz"]
[Site "Chess.com"]
[Date "2020.07.21"]
[Round "1"]
[White "louis198"]
[Black "CzechmVIII"]
[Result "1-0"]
[WhiteElo "2568"]
[BlackElo "2190"]
[TimeControl "180+1"]
[EndTime "10:07:14 PDT"]
[Termination "louis198 won by resignation"]

1. d4 {[%clk 0:03:00.9]} 1... Nf6 {[%clk 0:02:59.4]} 2. Bf4 {[%clk 0:03:00.3]}
2... c5 {[%clk 0:02:59.2]} 3. e3 {[%clk 0:03:00.2]} 3... Nd5 {[%clk 0:02:58.9]}
4. Bg3 {[%clk 0:02:58.5]} 4... Qb6 {[%clk 0:02:59]} 5. dxc5 {[%clk 0:02:55.5]}
5... Qxb2 {[%clk 0:02:49.9]} 6. Nd2 {[%clk 0:02:51.9]} 6... Nc3 {[%clk
0:02:42.6]} 7. Qc1 {[%clk 0:02:51.6]} 7... Qxc1+ {[%clk 0:02:40.6]} 8. Rxc1
{[%clk 0:02:52.5]} 8... e6 {[%clk 0:02:26.4]} 9. Bc4 {[%clk 0:02:46]} 9... Bxc5
{[%clk 0:02:24.2]} 10. Be5 {[%clk 0:02:46]} 10... Na4 {[%clk 0:02:13.5]} 11. Bb3
{[%clk 0:02:40.5]} 11... Nb6 {[%clk 0:02:09.9]} 12. Bxg7 {[%clk 0:02:40.5]}
12... Rg8 {[%clk 0:02:07.6]} 13. Be5 {[%clk 0:02:40.6]} 13... Nc6 {[%clk
0:02:02.2]} 14. Bg3 {[%clk 0:02:40.3]} 14... d5 {[%clk 0:01:57.5]} 15. Ngf3
{[%clk 0:02:39.1]} 15... Bd7 {[%clk 0:01:53]} 16. c4 {[%clk 0:02:35.6]} 16...
dxc4 {[%clk 0:01:51]} 17. Nxc4 {[%clk 0:02:35.4]} 17... Nxc4 {[%clk 0:01:46.1]}
18. Rxc4 {[%clk 0:02:36.3]} 18... Bb4+ {[%clk 0:01:44.3]} 19. Ke2 {[%clk
0:02:32.7]} 19... Be7 {[%clk 0:01:42.2]} 20. Rd1 {[%clk 0:02:29.2]} 20... Na5
{[%clk 0:01:35]} 21. Rxd7 {[%clk 0:01:36.7]} 21... Nxc4 {[%clk 0:01:29.9]} 22.
Rxe7+ {[%clk 0:01:36.7]} 22... Kxe7 {[%clk 0:01:30.8]} 23. Bxc4 {[%clk
0:01:37.2]} 23... Rac8 {[%clk 0:01:28.3]} 24. Bb3 {[%clk 0:01:37]} 24... b5
{[%clk 0:01:12.3]} 25. Nd4 {[%clk 0:01:35.9]} 25... a6 {[%clk 0:01:12.3]} 26.
Bh4+ {[%clk 0:01:35.8]} 26... Kd6 {[%clk 0:01:09.1]} 27. Bg3+ {[%clk 0:01:34]}
27... Ke7 {[%clk 0:01:06.5]} 28. Bc2 {[%clk 0:01:23.7]} 28... Rge8 {[%clk
0:00:39.1]} 29. Be4 {[%clk 0:01:18.6]} 29... Rc4 {[%clk 0:00:32.2]} 30. Bb7
{[%clk 0:01:13.1]} 30... Ra4 {[%clk 0:00:30.9]} 31. Nc6+ {[%clk 0:00:57.8]}
31... Kf8 {[%clk 0:00:26.4]} 32. a3 {[%clk 0:00:55.6]} 32... f6 {[%clk
0:00:20.6]} 33. Bd6+ {[%clk 0:00:55.5]} 33... Kf7 {[%clk 0:00:20.3]} 34. Bb4
{[%clk 0:00:54.6]} 34... Kg6 {[%clk 0:00:17.4]} 35. Na5 {[%clk 0:00:54.4]} 35...
e5 {[%clk 0:00:16.3]} 36. Be4+ {[%clk 0:00:51.6]} 36... f5 {[%clk 0:00:15.5]}
37. Bc2 {[%clk 0:00:52.1]} 37... Rxb4 {[%clk 0:00:15.3]} 38. axb4 {[%clk
0:00:53]} 38... Rd8 {[%clk 0:00:15.5]} 39. g4 {[%clk 0:00:52.2]} 39... Kg5
{[%clk 0:00:14.7]} 40. gxf5 {[%clk 0:00:52.2]} 40... Rc8 {[%clk 0:00:15]} 41.
Bd3 {[%clk 0:00:51.8]} 41... Rc3 {[%clk 0:00:15.1]} 42. Nb7 {[%clk 0:00:50.1]}
42... Rb3 {[%clk 0:00:14.8]} 43. Nc5 {[%clk 0:00:49.5]} 43... Rxb4 {[%clk
0:00:14.8]} 44. Nxa6 {[%clk 0:00:50]} 44... Rb2+ {[%clk 0:00:14.5]} 45. Kf3
{[%clk 0:00:50.4]} 45... Kf6 {[%clk 0:00:13.8]} 46. Nc5 {[%clk 0:00:50.4]} 46...
b4 {[%clk 0:00:13.8]} 47. Nd7+ {[%clk 0:00:48.1]} 47... Ke7 {[%clk 0:00:13.3]}
48. Nxe5 {[%clk 0:00:48.7]} 48... Ra2 {[%clk 0:00:12.8]} 49. Bc4 {[%clk
0:00:48.1]} 49... Ra1 {[%clk 0:00:11.9]} 50. Ng4 {[%clk 0:00:47]} 50... Rb1
{[%clk 0:00:10.2]} 51. f6+ {[%clk 0:00:47.2]} 51... Kf8 {[%clk 0:00:10.8]} 52.
Ne5 {[%clk 0:00:46.4]} 52... b3 {[%clk 0:00:10.9]} 53. Nd7+ {[%clk 0:00:46.6]}
53... Ke8 {[%clk 0:00:09.6]} 54. f7+ {[%clk 0:00:47]} 54... Kxd7 {[%clk
0:00:10]} 55. f8=Q {[%clk 0:00:47]} 1-0

[Event "*** SCC Grand Prix: Titled Tuesday Blitz"]
[Site "Chess.com"]
[Date "2020.07.21"]
[Round "1"]
[White "vladislavkovalev"]
[Black "2007checkmate"]
[Result "1-0"]
[WhiteElo "2889"]
[BlackElo "2435"]
[TimeControl "180+1"]
[EndTime "10:07:15 PDT"]
[Termination "vladislavkovalev won by checkmate"]

1. e4 {[%clk 0:03:00.9]} 1... e5 {[%clk 0:02:58.5]} 2. Nf3 {[%clk 0:03:01.1]}
2... Nc6 {[%clk 0:02:58.1]} 3. Bb5 {[%clk 0:03:01.7]} 3... a6 {[%clk 0:02:57.8]}
4. Ba4 {[%clk 0:03:02.3]} 4... Nf6 {[%clk 0:02:57.9]} 5. O-O {[%clk 0:03:02.9]}
5... Be7 {[%clk 0:02:58.2]} 6. d3 {[%clk 0:03:03.4]} 6... d6 {[%clk 0:02:58.1]}
7. Nc3 {[%clk 0:02:56.3]} 7... Bg4 {[%clk 0:02:56.3]} 8. h3 {[%clk 0:02:53.4]}
8... Bh5 {[%clk 0:02:55.3]} 9. Be3 {[%clk 0:02:47.6]} 9... Nd7 {[%clk
0:02:53.7]} 10. Nd5 {[%clk 0:02:42]} 10... h6 {[%clk 0:02:44.1]} 11. c4 {[%clk
0:02:36.8]} 11... Bg5 {[%clk 0:02:42.8]} 12. g4 {[%clk 0:02:22.3]} 12... Bg6
{[%clk 0:02:31.6]} 13. b4 {[%clk 0:02:07.4]} 13... Bxe3 {[%clk 0:02:01.2]} 14.
fxe3 {[%clk 0:02:08.3]} 14... h5 {[%clk 0:01:56]} 15. g5 {[%clk 0:02:05.4]}
15... h4 {[%clk 0:01:37.8]} 16. Qe1 {[%clk 0:01:57]} 16... Nf8 {[%clk
0:01:22.3]} 17. Kh2 {[%clk 0:01:44.1]} 17... Ne6 {[%clk 0:01:19.5]} 18. Rg1
{[%clk 0:01:37.4]} 18... Rh5 {[%clk 0:01:08.3]} 19. Qf2 {[%clk 0:01:32]} 19...
Rc8 {[%clk 0:00:52.9]} 20. Qg2 {[%clk 0:01:18.7]} 20... Kf8 {[%clk 0:00:44.8]}
21. Raf1 {[%clk 0:01:15.2]} 21... Kg8 {[%clk 0:00:43.7]} 22. Qg4 {[%clk
0:01:05.9]} 22... Na7 {[%clk 0:00:37.2]} 23. Bb3 {[%clk 0:00:32.4]} 23... c5
{[%clk 0:00:33]} 24. Nc3 {[%clk 0:00:33]} 24... cxb4 {[%clk 0:00:29.1]} 25. Nd5
{[%clk 0:00:33.6]} 25... b5 {[%clk 0:00:25.8]} 26. cxb5 {[%clk 0:00:28.2]} 26...
Nxb5 {[%clk 0:00:25.3]} 27. Nxb4 {[%clk 0:00:28.6]} 27... a5 {[%clk 0:00:25.3]}
28. Nd5 {[%clk 0:00:20.1]} 28... Nc3 {[%clk 0:00:25.5]} 29. Nxc3 {[%clk
0:00:18.9]} 29... Rxc3 {[%clk 0:00:26.4]} 30. Bxe6 {[%clk 0:00:19.6]} 30... fxe6
{[%clk 0:00:26.8]} 31. Nxh4 {[%clk 0:00:20.4]} 31... Bf7 {[%clk 0:00:19.4]} 32.
g6 {[%clk 0:00:10.8]} 32... Rc2+ {[%clk 0:00:05.6]} 33. Kh1 {[%clk 0:00:10.9]}
33... Rxh4 {[%clk 0:00:01.9]} 34. gxf7+ {[%clk 0:00:10.6]} 34... Kf8 {[%clk
0:00:02.2]} 35. Qxg7+ {[%clk 0:00:10.6]} 35... Ke7 {[%clk 0:00:02.7]} 36. f8=Q#
{[%clk 0:00:11.5]} 1-0

[Event "*** SCC Grand Prix: Titled Tuesday Blitz"]
[Site "Chess.com"]
[Date "2020.07.21"]
[Round "1"]
[White "LuckSlayeer"]
[Black "GMHess"]
[Result "0-1"]
[WhiteElo "2394"]
[BlackElo "2785"]
[TimeControl "180+1"]
[EndTime "10:07:15 PDT"]
[Termination "GMHess won by checkmate"]

1. Nf3 {[%clk 0:02:56.8]} 1... g6 {[%clk 0:03:00.9]} 2. d4 {[%clk 0:02:56]} 2...
Bg7 {[%clk 0:02:58.5]} 3. e4 {[%clk 0:02:55.6]} 3... a6 {[%clk 0:02:58.2]} 4. h4
{[%clk 0:02:53.4]} 4... h6 {[%clk 0:02:58]} 5. c4 {[%clk 0:02:51.3]} 5... d6
{[%clk 0:02:58.1]} 6. Nc3 {[%clk 0:02:51.5]} 6... Bg4 {[%clk 0:02:57.6]} 7. Be2
{[%clk 0:02:51.6]} 7... Nc6 {[%clk 0:02:57.4]} 8. Be3 {[%clk 0:02:48.9]} 8... e5
{[%clk 0:02:57]} 9. d5 {[%clk 0:02:44.3]} 9... Bxf3 {[%clk 0:02:57.4]} 10. Bxf3
{[%clk 0:02:44.2]} 10... Nd4 {[%clk 0:02:58.1]} 11. h5 {[%clk 0:02:44.5]} 11...
g5 {[%clk 0:02:47.6]} 12. Bg4 {[%clk 0:02:44.4]} 12... Nf6 {[%clk 0:02:41.5]}
13. O-O {[%clk 0:01:59.4]} 13... Qe7 {[%clk 0:02:23.7]} 14. f3 {[%clk
0:01:45.8]} 14... O-O {[%clk 0:02:09.6]} 15. Ne2 {[%clk 0:01:42]} 15... c5
{[%clk 0:01:59.7]} 16. Ng3 {[%clk 0:01:33.6]} 16... b5 {[%clk 0:01:57.3]} 17. b3
{[%clk 0:01:30.4]} 17... Rfb8 {[%clk 0:01:56.2]} 18. Nf5 {[%clk 0:01:27.7]}
18... Nxf5 {[%clk 0:01:54.9]} 19. Bxf5 {[%clk 0:01:28.6]} 19... Nxh5 {[%clk
0:01:53.4]} 20. Rf2 {[%clk 0:01:07.7]} 20... bxc4 {[%clk 0:01:20.5]} 21. bxc4
{[%clk 0:01:08.6]} 21... Rb4 {[%clk 0:01:20.8]} 22. a3 {[%clk 0:00:52]} 22...
Rxc4 {[%clk 0:01:16]} 23. Qb3 {[%clk 0:00:51.6]} 23... Rd4 {[%clk 0:01:13.5]}
24. Rb1 {[%clk 0:00:23.2]} 24... c4 {[%clk 0:01:02.9]} 25. Qb6 {[%clk
0:00:14.3]} 25... Rd3 {[%clk 0:01:00.5]} 26. Rc2 {[%clk 0:00:13.5]} 26... Ng3
{[%clk 0:00:32.6]} 27. Bh3 {[%clk 0:00:12.8]} 27... h5 {[%clk 0:00:18.5]} 28.
Rxc4 {[%clk 0:00:12.8]} 28... g4 {[%clk 0:00:18.8]} 29. fxg4 {[%clk 0:00:13.4]}
29... hxg4 {[%clk 0:00:18.4]} 30. Bxg4 {[%clk 0:00:12.5]} 30... Qh4 {[%clk
0:00:18.7]} 31. Bh3 {[%clk 0:00:09.5]} 31... Ne2+ {[%clk 0:00:15.8]} 32. Kh1
{[%clk 0:00:09.6]} 32... Nd4 {[%clk 0:00:13.8]} 33. Bxd4 {[%clk 0:00:07.7]}
33... exd4 {[%clk 0:00:14.1]} 34. Qxd6 {[%clk 0:00:07.8]} 34... Qxe4 {[%clk
0:00:11.3]} 35. Rc7 {[%clk 0:00:04]} 35... Rxh3+ {[%clk 0:00:10.9]} 36. Kg1
{[%clk 0:00:04.3]} 36... Qe3+ {[%clk 0:00:10.6]} 37. Kf1 {[%clk 0:00:02.5]}
37... Rh1# {[%clk 0:00:11.5]} 0-1

[Event "*** SCC Grand Prix: Titled Tuesday Blitz"]
[Site "Chess.com"]
[Date "2020.07.21"]
[Round "1"]
[White "Semen_Khanin"]
[Black "KingCrusher275"]
[Result "1-0"]
[WhiteElo "2736"]
[BlackElo "2376"]
[TimeControl "180+1"]
[EndTime "10:07:15 PDT"]
[Termination "Semen_Khanin won by resignation"]

1. e4 {[%clk 0:02:48.7]} 1... c5 {[%clk 0:02:59.5]} 2. Nf3 {[%clk 0:02:48.7]}
2... e6 {[%clk 0:02:59]} 3. d4 {[%clk 0:02:49.2]} 3... cxd4 {[%clk 0:02:59.8]}
4. Nxd4 {[%clk 0:02:49.8]} 4... Nc6 {[%clk 0:03:00.4]} 5. Nc3 {[%clk 0:02:49.9]}
5... Qc7 {[%clk 0:03:00.8]} 6. Be3 {[%clk 0:02:49.3]} 6... a6 {[%clk 0:02:59.9]}
7. Qf3 {[%clk 0:02:49.6]} 7... Nf6 {[%clk 0:02:59.7]} 8. O-O-O {[%clk
0:02:48.7]} 8... Ne5 {[%clk 0:02:59.1]} 9. Qg3 {[%clk 0:02:48.7]} 9... b5 {[%clk
0:02:59.1]} 10. Bxb5 {[%clk 0:02:48.2]} 10... axb5 {[%clk 0:02:14.1]} 11. Ndxb5
{[%clk 0:02:47.9]} 11... Qb8 {[%clk 0:02:06.5]} 12. Bf4 {[%clk 0:02:48.1]} 12...
d6 {[%clk 0:01:49.4]} 13. Rxd6 {[%clk 0:02:48.2]} 13... Nh5 {[%clk 0:01:24.1]}
14. Qg5 {[%clk 0:02:45.1]} 14... Bxd6 {[%clk 0:01:18.2]} 15. Nxd6+ {[%clk
0:02:41.1]} 15... Qxd6 {[%clk 0:01:14.5]} 16. Bxe5 {[%clk 0:02:18.1]} 16... Qe7
{[%clk 0:01:06.2]} 17. Qxh5 {[%clk 0:02:13.9]} 17... O-O {[%clk 0:01:06.3]} 18.
Rd1 {[%clk 0:01:58.8]} 18... Rd8 {[%clk 0:00:57.4]} 19. Rxd8+ {[%clk 0:01:53.3]}
19... Qxd8 {[%clk 0:00:58.3]} 20. Qd1 {[%clk 0:01:53.5]} 20... Qe8 {[%clk
0:00:49.6]} 21. Qg4 {[%clk 0:01:45.3]} 21... Qf8 {[%clk 0:00:44.5]} 22. Bf6
{[%clk 0:01:39.9]} 22... Bb7 {[%clk 0:00:36.5]} 23. h4 {[%clk 0:01:27.9]} 23...
h6 {[%clk 0:00:34.9]} 24. h5 {[%clk 0:01:26.7]} 24... Kh7 {[%clk 0:00:34.4]} 25.
Bd4 {[%clk 0:01:22.9]} 25... Rd8 {[%clk 0:00:33.5]} 26. Be3 {[%clk 0:01:22]}
26... Qb4 {[%clk 0:00:29.8]} 27. a3 {[%clk 0:01:20.3]} 27... Qc4 {[%clk
0:00:28.6]} 28. Qe2 {[%clk 0:01:09.8]} 28... Qxe2 {[%clk 0:00:26.1]} 29. Nxe2
{[%clk 0:01:10]} 29... Bxe4 {[%clk 0:00:27]} 30. f3 {[%clk 0:01:10.7]} 30... Bb7
{[%clk 0:00:20.1]} 31. b3 {[%clk 0:00:54.2]} 31... e5 {[%clk 0:00:20.4]} 32. Ng3
{[%clk 0:00:45.9]} 32... Bc8 {[%clk 0:00:15.8]} 33. a4 {[%clk 0:00:39.4]} 33...
f5 {[%clk 0:00:16.1]} 34. Bb6 {[%clk 0:00:39.2]} 34... Re8 {[%clk 0:00:16]} 35.
c4 {[%clk 0:00:32.7]} 35... e4 {[%clk 0:00:16.5]} 36. fxe4 {[%clk 0:00:33]}
36... fxe4 {[%clk 0:00:17.4]} 37. Be3 {[%clk 0:00:32.9]} 37... Bg4 {[%clk
0:00:14.6]} 38. a5 {[%clk 0:00:30.7]} 38... g6 {[%clk 0:00:14.9]} 39. hxg6+
{[%clk 0:00:30.1]} 39... Kxg6 {[%clk 0:00:15.8]} 40. a6 {[%clk 0:00:30.5]} 40...
h5 {[%clk 0:00:14.8]} 41. a7 {[%clk 0:00:29.2]} 41... Bf5 {[%clk 0:00:15.3]} 42.
b4 {[%clk 0:00:26.7]} 42... h4 {[%clk 0:00:13.6]} 43. Ne2 {[%clk 0:00:26.9]}
43... Kf6 {[%clk 0:00:12.8]} 44. b5 {[%clk 0:00:26.1]} 44... Ke5 {[%clk
0:00:12.9]} 45. b6 {[%clk 0:00:26.3]} 45... Bc8 {[%clk 0:00:11]} 46. a8=Q {[%clk
0:00:26.1]} 1-0

[Event "*** SCC Grand Prix: Titled Tuesday Blitz"]
[Site "Chess.com"]
[Date "2020.07.21"]
[Round "1"]
[White "monalize"]
[Black "baag"]
[Result "0-1"]
[WhiteElo "2269"]
[BlackElo "2614"]
[TimeControl "180+1"]
[EndTime "10:07:16 PDT"]
[Termination "baag won on time"]

1. e4 {[%clk 0:02:56]} 1... Nf6 {[%clk 0:03:00.2]} 2. e5 {[%clk 0:02:55.4]} 2...
Nd5 {[%clk 0:03:00.2]} 3. d3 {[%clk 0:02:55.8]} 3... d6 {[%clk 0:02:59]} 4. exd6
{[%clk 0:02:54.8]} 4... cxd6 {[%clk 0:02:59.9]} 5. Be2 {[%clk 0:02:53.2]} 5...
g6 {[%clk 0:03:00]} 6. Nf3 {[%clk 0:02:52.3]} 6... Bg7 {[%clk 0:02:59.8]} 7. O-O
{[%clk 0:02:51.8]} 7... O-O {[%clk 0:03:00.4]} 8. c3 {[%clk 0:02:50.8]} 8... Nc6
{[%clk 0:03:00]} 9. Re1 {[%clk 0:02:50.6]} 9... e5 {[%clk 0:03:00.3]} 10. Nbd2
{[%clk 0:02:43.6]} 10... h6 {[%clk 0:03:00.6]} 11. Bf1 {[%clk 0:02:35.8]} 11...
Be6 {[%clk 0:02:59.4]} 12. a4 {[%clk 0:02:11.1]} 12... Nc7 {[%clk 0:02:40.4]}
13. a5 {[%clk 0:02:01]} 13... f5 {[%clk 0:02:38.3]} 14. Qa4 {[%clk 0:01:54.1]}
14... Bf7 {[%clk 0:02:26]} 15. Nc4 {[%clk 0:01:41.1]} 15... Re8 {[%clk
0:02:24.6]} 16. Qa3 {[%clk 0:01:36.6]} 16... Nb5 {[%clk 0:02:05.6]} 17. Qb3
{[%clk 0:01:33.7]} 17... a6 {[%clk 0:02:04.1]} 18. Qc2 {[%clk 0:01:33.2]} 18...
d5 {[%clk 0:01:59.6]} 19. Nb6 {[%clk 0:01:28.5]} 19... Rb8 {[%clk 0:02:00.1]}
20. Qa4 {[%clk 0:01:22.3]} 20... e4 {[%clk 0:01:54.6]} 21. Nd2 {[%clk
0:01:15.8]} 21... Qc7 {[%clk 0:01:39.8]} 22. Nb3 {[%clk 0:01:10.6]} 22... exd3
{[%clk 0:01:24.5]} 23. Bd2 {[%clk 0:01:04.9]} 23... Ne5 {[%clk 0:01:18.5]} 24.
Bf4 {[%clk 0:00:41.3]} 24... g5 {[%clk 0:01:17.3]} 25. Bxe5 {[%clk 0:00:40.6]}
25... Bxe5 {[%clk 0:01:17.9]} 26. g3 {[%clk 0:00:37.1]} 26... Nd6 {[%clk
0:01:06.3]} 27. Bxd3 {[%clk 0:00:32.8]} 27... Ne4 {[%clk 0:01:06.6]} 28. Nd4
{[%clk 0:00:31.2]} 28... Qc5 {[%clk 0:00:45.8]} 29. Qa3 {[%clk 0:00:23.6]} 29...
Bxd4 {[%clk 0:00:44.6]} 30. cxd4 {[%clk 0:00:23.2]} 30... Qxd4 {[%clk
0:00:45.5]} 31. Re2 {[%clk 0:00:21.3]} 31... Nc5 {[%clk 0:00:39.7]} 32. Rd1
{[%clk 0:00:20.1]} 32... Nxd3 {[%clk 0:00:37.6]} 33. Rxd3 {[%clk 0:00:19.5]}
33... Qg4 {[%clk 0:00:25.3]} 34. f3 {[%clk 0:00:18.7]} 34... Qh3 {[%clk
0:00:22.9]} 35. Re7 {[%clk 0:00:17.7]} 35... Rxe7 {[%clk 0:00:22.1]} 36. Qxe7
{[%clk 0:00:16.7]} 36... Re8 {[%clk 0:00:23]} 37. Qb4 {[%clk 0:00:16.1]} 37...
Re2 {[%clk 0:00:23.1]} 0-1